bitfinex-derivatives/quotes_BTCF0:USTF0_20250711
["timestamp","ask_amount","ask_price","bid_price","bid_amount"]
[1752228991954,0.1437358,118280.0,118270.0,0.21596297]
[1752228992365,0.3127669,118280.0,118270.0,0.21596297]
[1752228992962,0.2547929,118280.0,118270.0,0.21596297]
[1752228993358,0.0857618,118280.0,118270.0,0.21596297]
[1752228993961,0.2547929,118280.0,118270.0,0.21596297]
[1752228994157,0.0857618,118280.0,118270.0,0.21596297]
[1752228994364,0.2547929,118280.0,118270.0,0.21596297]
[1752228994663,0.44626633,118280.0,118240.0,0.0016914]
[1752228994864,0.89008306,118250.0,118240.0,0.03824312]
[1752228995066,0.1691169,118220.0,118210.0,0.02279859]
[1752228995263,0.59841915,118220.0,118210.0,0.19192859]
[1752228995461,0.13179772,118220.0,118210.0,0.16913]
[1752228995666,0.13179772,118220.0,118210.0,0.19192859]
[1752228995970,0.01744805,118230.0,118220.0,0.1691169]
[1752228996267,0.0611,118230.0,118220.0,0.18517787]
[1752228996469,0.0303,118230.0,118220.0,0.21537787]
[1752228997062,0.048185,118230.0,118220.0,0.21537787]
[1752228997865,0.048185,118230.0,118220.0,0.21737787]
[1752228998071,0.048185,118230.0,118220.0,0.22037787]
[1752228999567,0.017885,118230.0,118220.0,0.5808824]
[1752228999767,0.017885,118230.0,118220.0,1.8684824]
[1752229000771,0.017885,118230.0,118220.0,1.50797787]
[1752229002973,0.017885,118230.0,118220.0,1.93075046]
[1752229005671,0.01944796,118250.0,118240.0,0.1690883]
[1752229005870,0.01944796,118250.0,118240.0,1.84734089]
[1752229006172,0.01944796,118250.0,118240.0,1.4889683]
[1752229007774,0.01944796,118250.0,118240.0,1.91174089]
[1752229008367,0.01944796,118250.0,118240.0,1.91274089]
[1752229008776,0.01944796,118250.0,118240.0,1.92895764]
[1752229009875,0.01944796,118250.0,118240.0,0.67347764]
[1752229010075,0.01944796,118250.0,118240.0,1.92871764]
[1752229010774,0.002,118250.0,118240.0,1.92871764]
[1752229012078,0.002,118250.0,118240.0,1.92840672]
[1752229017086,0.002,118250.0,118240.0,1.50563413]
[1752229017285,0.002,118250.0,118240.0,1.92840672]
[1752229017781,0.002,118250.0,118240.0,1.92886069]
[1752229020489,0.002,118250.0,118240.0,0.1864481]
[1752229020685,0.71632603,118250.0,118240.0,1.4406081]
[1752229020888,0.59364188,118250.0,118240.0,1.4406081]
[1752229021782,0.66940673,118250.0,118240.0,1.4406081]
[1752229022387,0.59364188,118250.0,118240.0,1.4406081]
[1752229022581,0.232874,118250.0,118240.0,1.4406081]
[1752229022785,0.69971268,118250.0,118240.0,1.4406081]
[1752229023086,0.59364188,118250.0,118240.0,1.44036776]
[1752229024992,0.65440915,118250.0,118240.0,1.4242483]
[1752229025389,0.59364188,118250.0,118240.0,1.4242483]
[1752229025694,0.65441345,118250.0,118240.0,1.4242483]
[1752229026492,0.59364188,118250.0,118240.0,1.4242483]
[1752229027789,0.232874,118250.0,118240.0,1.4242483]
[1752229027994,0.59364188,118250.0,118240.0,1.4242483]
[1752229028895,0.65441345,118250.0,118240.0,0.001]
[1752229029286,1.28117345,118250.0,118240.0,0.001]
[1752229029897,1.22040188,118250.0,118240.0,0.001]
[1752229031094,1.32647268,118250.0,118240.0,0.001]
[1752229031290,1.57151401,118250.0,118240.0,0.001]
[1752229031496,1.38946589,118250.0,118240.0,0.001]
[1752229032195,1.49570023,118250.0,118240.0,0.001]
[1752229032598,1.13493235,118250.0,118240.0,0.001]
[1752229032796,1.49570023,118250.0,118240.0,0.001]
[1752229032994,1.38946589,118250.0,118240.0,0.001]
[1752229034902,1.45012638,118250.0,118240.0,0.001]
[1752229035799,1.38946589,118250.0,118240.0,0.001]
[1752229036596,1.22032188,118250.0,118240.0,0.001]
[1752229036797,1.38946589,118250.0,118240.0,0.001]
[1752229037401,1.46530714,118250.0,118240.0,0.001]
[1752229037599,0.47785926,118250.0,118240.0,0.001]
[1752229037799,1.38926589,118250.0,118240.0,0.001]
[1752229039299,0.24580727,118250.0,118240.0,0.1700883]
[1752229039511,0.93520834,118250.0,118240.0,0.1700883]
[1752229039700,0.828974,118250.0,118240.0,0.2008883]
[1752229039907,1.25036689,118250.0,118240.0,0.1700883]
[1752229040106,1.28126689,118250.0,118240.0,0.001]
[1752229040306,1.75055377,118250.0,118240.0,0.001]
[1752229040509,1.38978589,118250.0,118240.0,0.00020087]
[1752229040805,1.22064188,118250.0,118240.0,0.00020087]
[1752229041000,1.37217159,118250.0,118240.0,0.00020087]
[1752229041806,1.22064188,118250.0,118240.0,0.00020087]
[1752229042810,1.29641132,118250.0,118240.0,0.00020087]
[1752229043410,1.32669205,118250.0,118240.0,0.00020087]
[1752229045605,0.70029205,118250.0,118240.0,0.16928917]
[1752229045904,0.93478417,118250.0,118240.0,0.20028917]
[1752229046109,1.29555205,118250.0,118240.0,0.23078917]
[1752229047110,1.18950188,118250.0,118240.0,0.23078917]
[1752229047613,0.93478417,118250.0,118240.0,0.23078917]
[1752229047813,1.18950188,118250.0,118240.0,0.23078917]
[1752229048010,1.26530142,118250.0,118240.0,0.23078917]
[1752229048210,0.24687354,118250.0,118240.0,0.23078917]
[1752229048411,0.87293092,118250.0,118240.0,0.23078917]
[1752229048713,1.2336988,118250.0,118240.0,0.23078917]
[1752229049914,0.93360016,118250.0,118240.0,0.23078917]
[1752229050114,0.62796,118250.0,118240.0,0.23078917]
[1752229050318,0.62796,118250.0,118240.0,0.59155705]
[1752229050511,0.7038008,118250.0,118240.0,0.59155705]
[1752229050710,0.0778408,118250.0,118240.0,0.59155705]
[1752229051510,0.002,118250.0,118240.0,0.59155705]
[1752229052808,0.002,118250.0,118240.0,0.23078917]
[1752229054515,0.0778408,118250.0,118240.0,0.23078917]
[1752229054909,0.171074,118250.0,118240.0,0.23078917]
[1752229055415,0.002,118250.0,118240.0,0.23078917]
[1752229055616,0.002,118250.0,118240.0,0.59155705]
[1752229055911,0.18189097,118270.0,118260.0,0.2958478]
[1752229056114,0.10615017,118280.0,118270.0,0.1690454]
[1752229056318,0.10615017,118280.0,118270.0,0.59011328]
[1752229056612,0.07595509,118280.0,118270.0,0.59011328]
[1752229057006,0.0001,118280.0,118270.0,0.59011328]
[1752229057215,0.06074502,118280.0,118270.0,0.59011328]
[1752229057717,0.06274502,118280.0,118270.0,0.58811328]
[1752229057918,0.06274502,118280.0,118270.0,0.2273454]
[1752229059011,0.06274502,118280.0,118270.0,0.58811328]
[1752229059417,0.06474502,118280.0,118270.0,0.58811328]
[1752229059914,0.0041,118280.0,118270.0,0.2273454]
[1752229060115,0.1731311,118280.0,118270.0,0.2273454]
[1752229060418,0.1731311,118280.0,118270.0,0.2293454]
[1752229061813,0.0041,118280.0,118270.0,0.2293454]
[1752229062920,0.1731311,118280.0,118270.0,0.2293454]
[1752229063321,0.0041,118280.0,118270.0,0.2293454]
[1752229063720,0.06474502,118280.0,118270.0,0.2293454]
[1752229064817,0.23377612,118280.0,118270.0,0.2293454]
[1752229065020,0.1731311,118280.0,118270.0,0.2293454]
[1752229065924,0.53389898,118280.0,118270.0,0.0603]
[1752229066123,0.53389898,118280.0,118270.0,0.2293454]
[1752229069825,0.53389898,118280.0,118260.0,0.2113189]
[1752229069826,0.1690454,118270.0,118260.0,0.2113189]
[1752229070030,0.1690454,118270.0,118260.0,0.2740189]
[1752229070031,0.52981328,118270.0,118260.0,0.2740189]
[1752229070226,0.54725872,118270.0,118260.0,0.2740189]
[1752229071231,0.54825872,118270.0,118260.0,0.2740189]
[1752229071429,0.55025872,118270.0,118260.0,0.2740189]
[1752229071728,0.55855307,118270.0,118260.0,0.2740189]
[1752229072526,0.55855307,118270.0,118260.0,0.2317546]
[1752229072729,0.55865307,118270.0,118260.0,0.1996546]
[1752229072927,0.62055307,118270.0,118260.0,0.1996546]
[1752229073230,0.68119809,118270.0,118260.0,0.1996546]
[1752229073432,0.32043021,118270.0,118260.0,0.1996546]
[1752229073632,0.68119809,118270.0,118260.0,0.1996546]
[1752229074229,0.62055307,118270.0,118260.0,0.1996546]
[1752229075530,0.69640816,118270.0,118260.0,0.1996546]
[1752229076528,0.12690053,118270.0,118260.0,0.56042248]
[1752229076830,0.12690053,118270.0,118260.0,0.59352248]
[1752229077232,0.12690053,118270.0,118260.0,0.2327546]
[1752229077427,0.12690053,118270.0,118260.0,0.59352248]
[1752229077932,0.29594593,118270.0,118260.0,0.2327546]
[1752229078230,0.22009084,118270.0,118260.0,0.2327546]
[1752229078434,0.05104544,118270.0,118260.0,0.2327546]
[1752229079831,0.22009084,118270.0,118260.0,0.1690546]
[1752229080032,0.31210297,118270.0,118260.0,0.1690546]
[1752229080436,0.14305757,118270.0,118260.0,0.1690546]
[1752229080631,0.14307812,118270.0,118260.0,0.1690546]
[1752229080830,0.0031,118270.0,118260.0,0.56042248]
[1752229081036,0.06373444,118270.0,118260.0,0.59272248]
[1752229081437,0.0031,118270.0,118260.0,0.59272248]
[1752229082632,0.0031,118270.0,118260.0,0.2319546]
[1752229082833,0.07895509,118270.0,118260.0,0.59272248]
[1752229083434,0.06378012,118270.0,118260.0,0.59272248]
[1752229083838,0.06378012,118270.0,118260.0,0.2319546]
[1752229084137,0.06378012,118270.0,118260.0,0.59272248]
[1752229084342,0.06378012,118270.0,118260.0,0.2319546]
[1752229084638,0.0031,118270.0,118260.0,0.59272248]
[1752229091842,0.0031,118270.0,118260.0,0.2319546]
[1752229092050,0.0031,118270.0,118260.0,0.59272248]
[1752229094838,0.07805509,118290.0,118260.0,1.20354775]
[1752229095039,0.06737029,118320.0,118300.0,0.1690026]
[1752229095246,0.13077029,118320.0,118310.0,0.52975618]
[1752229095446,0.13077029,118320.0,118310.0,0.56085618]
[1752229095837,0.10037029,118320.0,118310.0,0.56085618]
[1752229096038,1e-07,118320.0,118310.0,0.2000883]
[1752229096238,1e-07,118320.0,118310.0,0.95432406]
[1752229096545,1e-07,118320.0,118310.0,0.59355618]
[1752229096944,0.0040001,118320.0,118310.0,0.59355618]
[1752229097745,0.0040001,118320.0,118310.0,0.2327883]
[1752229097950,0.0040001,118320.0,118310.0,0.60208405]
[1752229098652,0.0362001,118320.0,118310.0,0.60208405]
[1752229098855,0.0362001,118320.0,118310.0,0.24131617]
[1752229099153,0.0342001,118320.0,118310.0,0.60208405]
[1752229100049,0.0342001,118320.0,118310.0,0.56938405]
[1752229100246,0.0674001,118320.0,118310.0,0.56938405]
[1752229102559,0.0654001,118320.0,118310.0,0.56938405]
[1752229102750,0.0322001,118320.0,118310.0,0.56938405]
[1752229103350,0.0322001,118320.0,118310.0,0.60028405]
[1752229104754,1e-07,118320.0,118310.0,0.60028405]
[1752229105859,0.002,118330.0,118320.0,0.168974]
[1752229106047,1e-07,118330.0,118320.0,2.38456267]
[1752229106656,2e-08,118350.0,118340.0,0.1689454]
[1752229106853,2e-08,118350.0,118340.0,1.83877328]
[1752229107760,2e-08,118350.0,118340.0,1.83677328]
[1752229108758,2e-08,118350.0,118340.0,1.77203328]
[1752229108949,0.03330002,118350.0,118340.0,1.4112654]
[1752229109154,0.06550002,118350.0,118340.0,1.4112654]
[1752229114266,0.23443122,118350.0,118340.0,1.4112654]
[1752229114767,0.06550002,118350.0,118340.0,1.4112654]
[1752229114964,0.23443122,118350.0,118340.0,0.1689454]
[1752229115166,0.1689454,118340.0,118330.0,1.5389797]
[1752229115366,0.2324454,118340.0,118330.0,0.2534207]
[1752229117065,0.2324454,118340.0,118330.0,0.2111831]
[1752229117270,0.2324454,118340.0,118330.0,0.1689463]
[1752229119974,0.1689597,118330.0,118320.0,0.18651317]
[1752229120174,0.2309597,118330.0,118320.0,0.18651317]
[1752229121372,0.2309597,118330.0,118320.0,0.18751317]
[1752229122977,0.24856419,118330.0,118320.0,0.18751317]
[1752229123364,1.36050219,118330.0,118320.0,0.00269026]
[1752229123570,0.92352249,118330.0,118320.0,0.00269026]
[1752229123873,1.60520095,118330.0,118320.0,0.00269026]
[1752229124071,1.52965095,118330.0,118320.0,0.00269026]
[1752229124469,0.90853095,118330.0,118320.0,0.00269026]
[1752229124668,1.52961095,118330.0,118320.0,0.00269026]
[1752229124868,1.52961095,118330.0,118320.0,0.00569026]
[1752229125074,1.46905249,118330.0,118320.0,0.00569026]
[1752229125269,0.1690025,118300.0,118290.0,0.18525174]
[1752229125574,0.1690025,118300.0,118290.0,0.1690168]
[1752229125575,1.21197057,118300.0,118290.0,0.1690168]
[1752229125769,0.8534425,118300.0,118290.0,0.1690168]
[1752229125965,1.27537057,118300.0,118290.0,0.1690168]
[1752229126272,0.91401723,118300.0,118290.0,0.1690168]
[1752229127175,0.1690168,118290.0,118280.0,0.080649]
[1752229127874,0.6515196,118290.0,118280.0,0.017649]
[1752229128174,1.41414487,118290.0,118280.0,0.00169083]
[1752229128371,0.1690597,118260.0,118250.0,0.04827127]
[1752229128575,0.169074,118250.0,118240.0,0.0016914]
[1752229128764,0.200374,118250.0,118240.0,0.0016914]
[1752229129071,0.851214,118250.0,118240.0,0.0016914]
[1752229129581,0.851214,118250.0,118240.0,0.0347914]
[1752229129774,0.851214,118250.0,118240.0,0.2038797]
[1752229130076,1.21196322,118250.0,118240.0,0.01436726]
[1752229130673,0.230374,118250.0,118240.0,0.01436726]
[1752229130875,0.230374,118250.0,118240.0,0.1747797]
[1752229131080,0.851214,118250.0,118240.0,0.18740812]
[1752229131272,0.851214,118250.0,118240.0,0.1747797]
[1752229131471,0.851214,118250.0,118240.0,0.18740616]
[1752229131978,0.851214,118250.0,118240.0,0.1747797]
[1752229133079,0.851214,118250.0,118240.0,0.01831231]
[1752229133380,0.851214,118250.0,118240.0,0.1747797]
[1752229133775,0.851214,118250.0,118240.0,0.1777797]
[1752229136375,1.27392514,118250.0,118240.0,0.0086914]
[1752229138174,0.65308514,118250.0,118240.0,0.1777797]
[1752229138380,0.0313,118250.0,118240.0,0.1777797]
[1752229138587,0.2536054,118260.0,118250.0,0.169074]
[1752229138780,0.9065254,118260.0,118250.0,0.199974]
[1752229139291,0.0324,118260.0,118250.0,0.199974]
[1752229139585,0.18651594,118270.0,118260.0,0.1690597]
[1752229139780,0.80703594,118270.0,118260.0,0.2317597]
[1752229140378,0.83883594,118270.0,118260.0,0.2317597]
[1752229141380,0.21831594,118270.0,118260.0,0.2347597]
[1752229141786,0.83867594,118270.0,118260.0,0.2347597]
[1752229142173,0.21831594,118270.0,118260.0,0.2347597]
[1752229142381,0.83867594,118270.0,118260.0,0.2347597]
[1752229143085,1.26138708,118270.0,118260.0,0.2347597]
[1752229143288,1.26138708,118270.0,118260.0,0.0657]
[1752229143674,1.26138708,118270.0,118260.0,0.003]
[1752229143882,1.29158708,118270.0,118260.0,0.003]
[1752229145076,1.46069908,118270.0,118260.0,0.003]
[1752229145280,1.46069908,118270.0,118240.0,0.01797059]
[1752229145281,0.169074,118250.0,118240.0,0.01797059]
[1752229145585,1.21190514,118250.0,118240.0,0.01797059]
[1752229145885,1.27780514,118250.0,118240.0,0.01797059]
[1752229146881,1.27780514,118250.0,118240.0,0.02097059]
[1752229147786,1.27776514,118250.0,118240.0,0.02097059]
[1752229148186,1.27776514,118250.0,118240.0,0.02497059]
[1752229148983,1.27768514,118250.0,118240.0,0.1777797]
[1752229149184,1.27768514,118250.0,118240.0,0.0086914]
[1752229149886,0.65768514,118250.0,118240.0,0.0086914]
[1752229150087,0.169074,118250.0,118240.0,0.1777797]
[1752229150394,0.788914,118250.0,118240.0,0.63339084]
[1752229150690,0.788914,118250.0,118240.0,0.2417797]
[1752229150890,0.169074,118250.0,118240.0,0.2417797]
[1752229151090,0.788914,118250.0,118240.0,0.2417797]
[1752229154990,0.788914,118250.0,118240.0,0.25452009]
[1752229155886,0.61984,118250.0,118240.0,0.25452009]
[1752229156090,0.01747054,118270.0,118260.0,0.1690597]
[1752229156382,0.89899042,118270.0,118260.0,0.1690597]
[1752229156682,0.89899042,118270.0,118260.0,0.2325597]
[1752229157093,0.89895042,118270.0,118260.0,0.2325597]
[1752229157388,0.83845594,118270.0,118260.0,0.2325597]
[1752229158988,0.21901594,118270.0,118260.0,0.2325597]
[1752229159194,0.09302054,118270.0,118260.0,0.65527084]
[1752229159388,0.07804498,118270.0,118260.0,0.65527084]
[1752229159589,0.69728498,118270.0,118260.0,0.65527084]
[1752229159794,0.01738124,118270.0,118240.0,0.02162676]
[1752229159994,0.01738124,118270.0,118260.0,0.59177084]
[1752229160490,0.01738124,118270.0,118260.0,0.65347084]
[1752229160891,0.01738124,118270.0,118260.0,0.65547084]
[1752229161094,0.01738124,118270.0,118260.0,0.65647084]
[1752229161793,0.01738124,118270.0,118260.0,0.65947084]
[1752229161991,0.01738124,118270.0,118260.0,0.66047084]
[1752229164903,0.01738124,118270.0,118260.0,0.68364761]
[1752229165193,0.169074,118250.0,118240.0,0.2130508]
[1752229165385,1.406794,118250.0,118240.0,0.2130508]
[1752229165589,1.406794,118250.0,118240.0,0.2458508]
[1752229165796,1.406794,118250.0,118240.0,0.2761508]
[1752229167997,1.407794,118250.0,118240.0,0.2761508]
[1752229168198,1.439494,118250.0,118240.0,0.2761508]
[1752229168900,1.27042,118250.0,118240.0,0.2761508]
[1752229169092,1.439494,118250.0,118240.0,0.2761508]
[1752229169489,1.27042,118250.0,118240.0,0.2761508]
[1752229169797,1.439494,118250.0,118240.0,0.2761508]
[1752229169998,1.439494,118250.0,118240.0,0.2890016]
[1752229170198,1.470194,118250.0,118240.0,0.2890016]
[1752229170600,1.30112,118250.0,118240.0,0.2890016]
[1752229171000,1.30112,118250.0,118240.0,0.2761508]
[1752229171305,1.30112,118250.0,118240.0,0.28894046]
[1752229172798,1.23872,118250.0,118240.0,0.28894046]
[1752229172998,1.23872,118250.0,118240.0,0.7116516]
[1752229173399,1.23872,118250.0,118240.0,0.69886194]
[1752229173601,1.23872,118250.0,118240.0,0.2761508]
[1752229173803,1.23872,118250.0,118240.0,0.69886194]
[1752229176710,1.407794,118250.0,118240.0,0.2761508]
[1752229177310,1.438694,118250.0,118240.0,0.2761508]
[1752229179610,1.470694,118250.0,118240.0,0.2761508]
[1752229179913,1.53126844,118250.0,118240.0,0.2458508]
[1752229180117,1.53126844,118250.0,118240.0,0.2130508]
[1752229180314,1.470694,118250.0,118240.0,0.2130508]
[1752229184514,0.1691169,118220.0,118210.0,0.09286955]
[1752229184714,1.20926804,118220.0,118210.0,0.21970575]
[1752229184912,0.7865569,118220.0,118210.0,0.00830665]
[1752229185113,0.8495569,118220.0,118210.0,0.1691312]
[1752229185309,0.68044,118220.0,118210.0,0.1691312]
[1752229185614,0.09250725,118220.0,118210.0,0.59184234]
[1752229185814,0.0321,118220.0,118210.0,1.89036234]
[1752229186009,0.0321,118220.0,118210.0,1.89859787]
[1752229186312,0.06037681,118230.0,118220.0,0.2959545]
[1752229186516,0.06037681,118230.0,118220.0,0.78096564]
[1752229187420,0.06037681,118230.0,118220.0,0.78296564]
[1752229187716,0.12227681,118240.0,118230.0,0.1691026]
[1752229188818,0.19080462,118240.0,118230.0,0.1691026]
[1752229189320,0.19080462,118240.0,118230.0,0.1701026]
[1752229189711,0.35989292,118240.0,118230.0,0.1701026]
[1752229189912,0.1691169,118220.0,118210.0,0.003]
[1752229190211,0.1691312,118210.0,118200.0,0.00169198]
[1752229190418,0.65654234,118210.0,118200.0,0.00169198]
[1752229191321,0.71691915,118210.0,118200.0,0.00169198]
[1752229191516,0.65654234,118210.0,118200.0,0.00169198]
[1752229193017,0.65754234,118210.0,118200.0,0.00169198]
[1752229194413,0.71791915,118210.0,118200.0,0.00169198]
[1752229194915,0.82674234,118210.0,118200.0,0.00169198]
[1752229195115,0.88711915,118210.0,118200.0,0.00169198]
[1752229195316,0.88708956,118210.0,118200.0,0.00169198]
[1752229195518,0.1691598,118190.0,118180.0,0.01601305]
[1752229195717,0.7859998,118190.0,118180.0,0.01601305]
[1752229195913,0.8473998,118190.0,118180.0,0.01601305]
[1752229196519,0.90774374,118190.0,118180.0,0.01601305]
[1752229197018,0.29090374,118190.0,118180.0,0.18518715]
[1752229197225,0.90770374,118190.0,118180.0,0.18718715]
[1752229197424,0.8473598,118190.0,118180.0,0.18718715]
[1752229197925,0.8473598,118190.0,118180.0,0.02001305]
[1752229198427,0.8473598,118190.0,118180.0,0.00406052]
[1752229198612,0.0614,118190.0,118180.0,0.17323462]
[1752229198814,0.06034394,118200.0,118190.0,0.1691598]
[1752229199019,0.61668,118200.0,118190.0,0.65657094]
[1752229200623,0.26297166,118210.0,118200.0,0.1691455]
[1752229200825,0.87965166,118210.0,118200.0,0.1691455]
[1752229201018,0.87965166,118210.0,118200.0,0.2000455]
[1752229201618,0.05155066,118210.0,118200.0,0.2000455]
[1752229201822,0.72828083,118210.0,118200.0,0.2000455]
[1752229202023,0.72828083,118210.0,118200.0,0.2324455]
[1752229202318,0.72828083,118210.0,118200.0,0.65515664]
[1752229202520,0.72828083,118210.0,118200.0,0.2324455]
[1752229202721,0.72928083,118210.0,118200.0,0.2324455]
[1752229202921,0.89841203,118210.0,118200.0,0.2324455]
[1752229203929,0.05255066,118210.0,118200.0,0.2324455]
[1752229204222,0.003,118210.0,118200.0,1.07786778]
[1752229204420,0.003,118210.0,118200.0,0.65515664]
[1752229205923,0.002,118210.0,118200.0,0.65715664]
[1752229206425,0.002,118210.0,118200.0,0.65815664]
[1752229212928,0.002,118210.0,118200.0,0.2354455]
[1752229213131,0.002,118210.0,118200.0,0.65815664]
[1752229214924,0.002,118210.0,118200.0,1.27375664]
[1752229218831,0.06221017,118210.0,118200.0,1.21185152]
[1752229220831,0.06221017,118210.0,118200.0,1.28089761]
[1752229222428,0.07555,118230.0,118200.0,1.64175813]
[1752229222632,0.07555,118230.0,118220.0,0.52992292]
[1752229222825,0.07555,118240.0,118230.0,0.1691026]
[1752229223029,0.18625297,118250.0,118240.0,0.1690883]
[1752229223329,0.0802028,118250.0,118240.0,0.1690883]
[1752229225032,0.0802028,118250.0,118240.0,0.52989432]
[1752229225033,0.14865441,118250.0,118240.0,0.52989432]
[1752229225230,0.15165441,118250.0,118240.0,0.52989432]
[1752229225429,0.15165441,118250.0,118240.0,0.1680883]
[1752229225630,0.51246043,118250.0,118240.0,0.1680883]
[1752229225835,0.50946043,118250.0,118240.0,0.18405224]
[1752229226037,0.51046043,118250.0,118240.0,0.18405224]
[1752229226236,0.14965441,118250.0,118240.0,0.18405224]
[1752229227033,1.71335844,118250.0,118240.0,0.01596394]
[1752229227233,0.1690888,118240.0,118220.0,0.2113809]
[1752229227431,0.36080602,118230.0,118220.0,0.1691042]
[1752229227632,0.42160602,118230.0,118220.0,0.1691042]
[1752229227828,0.43943172,118230.0,118220.0,0.1691169]
[1752229228033,0.60853432,118230.0,118220.0,0.1691169]
[1752229228536,0.60853432,118230.0,118220.0,0.1701169]
[1752229229640,0.60853432,118230.0,118220.0,0.1731169]
[1752229229935,1.22301432,118230.0,118220.0,0.004]
[1752229231533,1.29856432,118230.0,118220.0,0.004]
[1752229232439,1.32906449,118230.0,118220.0,0.004]
[1752229234238,1.32921158,118230.0,118220.0,0.004]
[1752229234537,1.40482252,118230.0,118220.0,0.004]
[1752229234841,1.29877235,118230.0,118220.0,0.004]
[1752229235036,1.22316141,118230.0,118220.0,0.004]
[1752229235734,1.29877235,118230.0,118220.0,0.004]
[1752229235941,1.22316141,118230.0,118220.0,0.004]
[1752229237442,1.29877235,118230.0,118220.0,0.004]
[1752229240343,1.28079956,118230.0,118220.0,0.004]
[1752229240543,1.29838962,118230.0,118220.0,0.004]
[1752229241142,0.51480702,118230.0,118220.0,0.004]
[1752229241338,0.86113266,118230.0,118220.0,0.1731169]
[1752229241745,0.60829868,118230.0,118220.0,0.004]
[1752229242243,0.68390962,118230.0,118220.0,0.004]
[1752229242544,0.60829868,118230.0,118220.0,0.004]
[1752229242745,1.22189868,118230.0,118220.0,0.004]
[1752229242946,0.60829868,118230.0,118220.0,0.004]
[1752229243635,1.22181868,118230.0,118220.0,0.004]
[1752229243840,0.60829868,118230.0,118220.0,0.004]
[1752229244140,1.22177868,118230.0,118220.0,0.004]
[1752229244335,1.22187868,118230.0,118220.0,0.004]
[1752229244645,1.29748962,118230.0,118220.0,0.004]
[1752229245035,1.22187868,118230.0,118220.0,0.004]
[1752229245244,1.46665762,118230.0,118220.0,0.004]
[1752229245642,1.49709685,118230.0,118220.0,0.004]
[1752229246148,1.39104668,118230.0,118220.0,0.004]
[1752229248351,1.45144893,118230.0,118220.0,0.004]
[1752229250050,1.39104668,118230.0,118220.0,0.004]
[1752229250450,1.46655272,118230.0,118220.0,0.004]
[1752229251649,1.39104668,118230.0,118220.0,0.004]
[1752229252349,1.39048668,118230.0,118220.0,0.004]
[1752229252549,1.49619514,118230.0,118220.0,0.004]
[1752229252742,1.13538912,118230.0,118220.0,0.004]
[1752229252951,1.49619514,118230.0,118220.0,0.004]
[1752229254353,1.39048668,118230.0,118220.0,0.00093422]
[1752229255055,1.46596127,118230.0,118220.0,0.00093422]
[1752229256048,1.39048668,118230.0,118220.0,0.00093422]
[1752229256249,2.56060668,118230.0,118220.0,0.00093422]
[1752229256650,2.63608127,118230.0,118220.0,0.00093422]
[1752229258855,2.56060668,118230.0,118220.0,0.00093422]
[1752229259152,0.09320206,118230.0,118220.0,0.36174024]
[1752229259345,0.63013006,118230.0,118220.0,0.53085714]
[1752229259650,0.70567522,118230.0,118220.0,0.06503422]
[1752229259851,1.16003868,118230.0,118220.0,0.06503422]
[1752229260052,0.99093608,118230.0,118220.0,0.06503422]
[1752229260860,0.63013006,118230.0,118220.0,0.23415112]
[1752229261156,0.01769006,118230.0,118220.0,0.23415112]
[1752229261350,0.63005006,118230.0,118220.0,0.59495714]
[1752229262054,0.70555522,118230.0,118220.0,0.59495714]
[1752229263559,0.70555522,118230.0,118220.0,0.23415112]
[1752229264861,0.63001006,118230.0,118220.0,0.23415112]
[1752229267452,0.69043255,118230.0,118220.0,0.23415112]
[1752229268760,0.63001006,118230.0,118220.0,0.23415112]
[1752229268968,0.70555522,118230.0,118220.0,0.23415112]
[1752229269354,0.70491522,118230.0,118220.0,0.23415112]
[1752229271667,0.62937006,118230.0,118220.0,0.23415112]
[1752229272561,0.73508686,118230.0,118220.0,0.23415112]
[1752229274473,0.62937006,118230.0,118220.0,0.23415112]
[1752229274871,0.68968938,118230.0,118220.0,0.23415112]
[1752229275072,0.68968938,118230.0,118220.0,0.59495714]
[1752229275969,0.62937006,118230.0,118220.0,0.59495714]
[1752229276369,0.62937006,118230.0,118220.0,0.23415112]
[1752229277273,0.70476921,118230.0,118220.0,0.23415112]
[1752229277974,0.70476921,118230.0,118220.0,0.59495714]
[1752229278367,0.70476921,118230.0,118220.0,0.23415112]
[1752229279974,0.76504084,118230.0,118220.0,0.59495714]
[1752229280177,0.68964169,118230.0,118220.0,0.59495714]
[1752229280376,0.62937006,118230.0,118220.0,0.59495714]
[1752229281678,0.68964169,118230.0,118220.0,0.59495714]
[1752229283179,0.62937006,118230.0,118220.0,0.59495714]
[1752229284388,0.68964169,118230.0,118220.0,0.59495714]
[1752229287188,0.62937006,118230.0,118220.0,0.23415112]
[1752229287389,0.62937006,118230.0,118220.0,0.59495714]
[1752229288693,0.70476921,118230.0,118220.0,0.59495714]
[1752229289189,0.07549915,118230.0,118220.0,0.59495714]
[1752229289696,0.07549915,118230.0,118220.0,0.23415112]
[1752229289697,0.6103,118230.0,118220.0,0.23415112]
[1752229289993,0.6103,118230.0,118220.0,0.59495714]
[1752229290194,0.0001,118230.0,118220.0,0.59495714]
[1752229292895,0.0001,118230.0,118220.0,0.23415112]
[1752229293193,0.0001,118230.0,118220.0,0.59495714]
[1752229295896,0.0001,118230.0,118220.0,0.23415112]
[1752229296097,0.0001,118230.0,118220.0,0.59495714]
[1752229297195,0.07549915,118230.0,118220.0,0.59495714]
[1752229297398,0.0001,118230.0,118220.0,0.59495714]
[1752229297998,0.06033659,118230.0,118220.0,0.59495714]
[1752229307904,0.06033659,118230.0,118220.0,0.23415112]
[1752229308109,0.06033659,118230.0,118220.0,0.59495714]
[1752229311406,0.0001,118230.0,118220.0,0.59495714]
[1752229312207,0.06033659,118230.0,118220.0,0.59495714]
[1752229312902,0.06033659,118230.0,118220.0,1.04563528]
[1752229313505,0.06033659,118230.0,118220.0,0.6398932]
[1752229314909,0.06033659,118230.0,118220.0,0.59484478]
[1752229315209,0.0001,118230.0,118220.0,0.59484478]
[1752229315806,0.06033659,118230.0,118220.0,0.59484478]
[1752229316007,0.0001,118230.0,118220.0,0.59484478]
[1752229318219,0.0001,118230.0,118220.0,0.23415112]
[1752229319113,0.13999915,118240.0,118230.0,0.1691026]
[1752229319316,0.13999915,118240.0,118230.0,0.185389]
[1752229320715,0.13999915,118240.0,118230.0,0.19377969]
[1752229321219,0.0646,118240.0,118230.0,0.19377969]
[1752229324024,0.0646,118240.0,118230.0,0.55447335]
[1752229324320,0.13999915,118240.0,118230.0,0.55447335]
[1752229324919,0.002,118250.0,118240.0,0.1690883]
[1752229325118,0.1378168,118260.0,118250.0,0.169074]
[1752229325416,0.65717627,118280.0,118270.0,0.1690454]
[1752229325618,0.82620737,118280.0,118270.0,0.1690454]
[1752229325820,0.83485524,118280.0,118270.0,0.1690454]
[1752229326021,0.66582414,118280.0,118270.0,0.1680454]
[1752229326317,0.57942103,118280.0,118270.0,0.1680454]